bitfinex/quotes_BTCUSD_20250505
["timestamp","ask_amount","ask_price","bid_price","bid_amount"]
[1746460002953,0.2493341,94026.0,94025.0,0.43291563]
[1746460003919,0.03662698,94026.0,94025.0,0.43291563]
[1746460004114,0.2493341,94026.0,94025.0,0.44801563]
[1746460004318,0.2493341,94026.0,94025.0,0.38113062]
[1746460004674,0.03662698,94026.0,94025.0,0.38113062]
[1746460004860,0.2493341,94026.0,94025.0,0.38113062]
[1746460005665,0.2493341,94026.0,94025.0,0.4795997]
[1746460006058,0.2493341,94026.0,94025.0,0.4644997]
[1746460007239,0.2799341,94026.0,94025.0,0.4644997]
[1746460007865,0.2799341,94026.0,94025.0,0.45495885]
[1746460009009,0.2799341,94026.0,94025.0,0.40463049]
[1746460009820,0.2799341,94026.0,94025.0,0.41917134]
[1746460012600,0.2799341,94026.0,94025.0,0.37103062]
[1746460014927,0.2799341,94026.0,94025.0,0.36403062]
[1746460015096,0.2799341,94026.0,94025.0,0.77883062]
[1746460019657,0.26325604,94026.0,94025.0,0.77883062]
[1746460019870,0.27993504,94026.0,94025.0,0.77883062]
[1746460020712,0.38161194,94026.0,94025.0,0.76428977]
[1746460020923,0.44843982,94026.0,94025.0,0.34948977]
[1746460021131,0.44843982,94026.0,94025.0,0.33288977]
[1746460021336,0.78843982,94026.0,94025.0,0.31728977]
[1746460021538,0.78943982,94026.0,94025.0,0.31728977]
[1746460021744,0.78943982,94026.0,94020.0,0.03624765]
[1746460021745,0.61954405,94022.0,94020.0,0.03624765]
[1746460021948,0.51500774,94021.0,94020.0,0.02324765]
[1746460022146,0.51304817,94021.0,94020.0,0.02324765]
[1746460022354,0.53299709,94021.0,94020.0,0.02324765]
[1746460022805,0.54889709,94021.0,94020.0,0.02324765]
[1746460023223,0.55443653,94013.0,94000.0,16.19220694]
[1746460023432,0.62654706,94013.0,94000.0,16.19220694]
[1746460023667,0.64649598,94013.0,94000.0,16.19220694]
[1746460023895,0.66318024,94013.0,94000.0,16.19220694]
[1746460024095,0.66318024,94013.0,94000.0,15.77740694]
[1746460024497,0.61859157,94001.0,94000.0,15.77740694]
[1746460024727,0.63854049,94001.0,94000.0,15.77740694]
[1746460025139,0.6552261,94001.0,94000.0,15.77740694]
[1746460025750,0.6648261,94001.0,94000.0,15.77740694]
[1746460026061,0.766503,94001.0,94000.0,15.77740694]
[1746460026254,0.6648261,94001.0,94000.0,15.77740694]
[1746460026455,0.6658261,94001.0,94000.0,15.77740694]
[1746460026830,0.6658261,94001.0,94000.0,15.38046133]
[1746460027234,0.64914049,94001.0,94000.0,15.38046133]
[1746460027484,0.64914049,94001.0,94000.0,15.38146133]
[1746460029090,0.64914049,94001.0,94000.0,15.37446133]
[1746460029497,0.66582731,94001.0,94000.0,15.37446133]
[1746460030158,0.66582731,94001.0,94000.0,15.33545258]
[1746460030986,0.67642837,94001.0,94000.0,15.33545258]
[1746460032341,0.67642837,94001.0,94000.0,15.33445258]
[1746460032783,0.67942837,94001.0,94000.0,15.33545258]
[1746460033334,0.68342837,94001.0,94000.0,15.33645258]
[1746460035012,0.68442837,94001.0,94000.0,15.33645258]
[1746460035253,0.78994866,94001.0,94000.0,15.33645258]
[1746460035433,0.78994866,94001.0,94000.0,15.34056841]
[1746460036029,0.79385877,94001.0,94000.0,15.33956841]
[1746460036230,0.79685877,94001.0,94000.0,15.33256841]
[1746460036660,0.80285877,94001.0,94000.0,15.33356841]
[1746460036876,0.80285877,94001.0,94000.0,15.33156841]
[1746460036877,0.78985877,94001.0,94000.0,15.33156841]
[1746460037099,0.79685877,94001.0,94000.0,15.33256841]
[1746460037314,0.80285877,94001.0,94000.0,15.33356841]
[1746460038424,0.80385877,94001.0,94000.0,15.33356841]
[1746460038704,0.83617195,94001.0,94000.0,15.33356841]
[1746460038919,0.82757195,94001.0,94000.0,15.30787512]
[1746460039163,0.82757195,94001.0,94000.0,14.33949844]
[1746460039364,0.82757195,94001.0,94000.0,14.28613044]
[1746460039552,0.82757195,94001.0,94000.0,14.17939444]
[1746460039796,1.35874261,94001.0,94000.0,14.08765911]
[1746460040003,1.35174261,94001.0,94000.0,13.6169155]
[1746460040191,1.35874261,94001.0,94000.0,13.59862502]
[1746460040438,1.35874261,94001.0,94000.0,13.50771502]
[1746460040643,1.35274261,94001.0,94000.0,13.50671502]
[1746460040867,1.35874261,94001.0,94000.0,13.42620461]
[1746460041077,1.37328346,94001.0,94000.0,13.30442265]
[1746460041283,1.37328346,94001.0,94000.0,13.29855265]
[1746460041507,1.37328346,94001.0,94000.0,13.24518465]
[1746460041709,1.38997474,94001.0,94000.0,13.20456466]
[1746460041913,1.38997474,94001.0,94000.0,13.08113738]
[1746460042123,1.38997474,94001.0,94000.0,13.05119739]
[1746460042322,1.38997474,94001.0,94000.0,12.99782939]
[1746460042963,1.38997474,94001.0,94000.0,12.83205139]
[1746460043163,1.39076048,94001.0,94000.0,12.72831092]
[1746460043356,1.39076048,94001.0,94000.0,12.64475292]
[1746460043512,1.39076048,94001.0,94000.0,12.58638492]
[1746460043718,1.35880408,94001.0,94000.0,12.25797692]
[1746460043915,1.35880408,94001.0,94000.0,12.20167892]
[1746460044118,1.35880408,94001.0,94000.0,12.14829952]
[1746460044319,1.35880408,94001.0,94000.0,12.04154072]
[1746460044538,1.35280408,94001.0,94000.0,11.98816132]
[1746460044719,1.38476048,94001.0,94000.0,11.83308132]
[1746460044933,1.38476048,94001.0,94000.0,11.80601562]
[1746460045136,1.38476048,94001.0,94000.0,11.36913001]
[1746460045337,1.37776048,94001.0,94000.0,11.31575061]
[1746460045660,1.34120302,94001.0,94000.0,8.0128661]
[1746460046610,1.34620302,94001.0,94000.0,8.0128661]
[1746460047026,1.34620302,94001.0,94000.0,7.61592049]
[1746460047241,1.34620302,94001.0,94000.0,7.5992291]
[1746460047472,1.32145909,94001.0,94000.0,7.5992291]
[1746460048728,1.32145909,94001.0,94000.0,7.20228349]
[1746460049928,1.32145909,94001.0,94000.0,7.20304289]
[1746460050879,1.33815035,94001.0,94000.0,7.20304289]
[1746460051321,1.37010675,94001.0,94000.0,7.19604289]
[1746460051525,2.06590675,94001.0,94000.0,7.19604289]
[1746460052685,2.05990675,94001.0,94000.0,7.19604289]
[1746460052912,2.06390675,94001.0,94000.0,7.19604289]
[1746460053269,2.07290675,94001.0,94000.0,7.19604289]
[1746460054104,2.07290675,94001.0,94000.0,7.17935079]
[1746460054878,2.07290675,94001.0,94000.0,6.26434211]
[1746460055822,2.03995035,94001.0,94000.0,6.26434211]
[1746460056048,2.04095035,94001.0,94000.0,6.26434211]
[1746460056254,2.03995035,94001.0,94000.0,6.26434211]
[1746460056459,2.04095035,94001.0,94000.0,6.26434211]
[1746460057275,2.02425909,94001.0,94000.0,6.26434211]
[1746460058345,2.02425909,94001.0,94000.0,6.25734211]
[1746460060223,2.04095103,94001.0,94000.0,6.25734211]
[1746460060430,2.04095103,94001.0,94000.0,6.24065017]
[1746460060600,2.02425909,94001.0,94000.0,6.24065017]
[1746460061600,2.04095104,94001.0,94000.0,6.24065017]
[1746460062678,1.81960287,94001.0,94000.0,6.24065017]
[1746460062915,1.93543075,94001.0,94000.0,6.24065017]
[1746460063117,1.23963075,94001.0,94000.0,6.24065017]
[1746460063538,1.23063075,94001.0,94000.0,6.24065017]
[1746460063739,1.22163075,94001.0,94000.0,6.24065017]
[1746460063940,1.34415104,94001.0,94000.0,6.24065017]
[1746460064381,1.34415104,94001.0,94000.0,6.23065017]
[1746460064589,1.34425739,94001.0,94000.0,6.23065017]
[1746460065481,1.34425739,94001.0,94000.0,6.22365017]
[1746460067376,1.32756544,94001.0,94000.0,6.20695817]
[1746460070148,1.35952184,94001.0,94000.0,5.29194949]
[1746460070565,1.37621444,94001.0,94000.0,5.29194949]
[1746460070765,1.36821444,94001.0,94000.0,5.29194949]
[1746460070964,1.35921444,94001.0,94000.0,5.29194949]
[1746460071189,2.07401444,94001.0,94000.0,5.29194949]
[1746460071572,2.06501444,94001.0,94000.0,5.29194949]
[1746460072097,2.07401444,94001.0,94000.0,5.27525691]
[1746460072417,2.07401444,94001.0,94000.0,5.26825691]
[1746460072644,2.06401444,94001.0,94000.0,5.26825691]
[1746460073089,2.07401444,94001.0,94000.0,5.26825691]
[1746460074116,2.04205804,94001.0,94000.0,5.26825691]
[1746460076690,2.02536544,94001.0,94000.0,5.26825691]
[1746460077912,2.02436544,94001.0,94000.0,5.26825691]
[1746460078114,2.02536544,94001.0,94000.0,5.26825691]
[1746460079547,2.02536544,94001.0,94000.0,5.26125691]
[1746460079880,2.04205793,94001.0,94000.0,5.26125691]
[1746460080065,2.04205793,94001.0,94000.0,5.24456442]
[1746460080296,2.07197843,94001.0,94000.0,5.24456442]
[1746460081279,1.95615055,94001.0,94000.0,5.24456442]
[1746460081486,1.92623005,94001.0,94000.0,5.27686442]
[1746460081698,2.04205793,94001.0,94000.0,5.26096442]
[1746460082267,2.04205793,94001.0,94000.0,5.24456442]
[1746460082471,2.07198617,94001.0,94000.0,5.24456442]
[1746460084737,2.07198617,94001.0,94000.0,5.25837229]
[1746460084959,2.04205793,94001.0,94000.0,5.25837229]
[1746460085167,2.04205793,94001.0,94000.0,5.22787229]
[1746460086517,2.0719938,94001.0,94000.0,5.22087229]
[1746460087160,2.0719938,94001.0,94000.0,5.25187229]
[1746460087394,1.95516592,94001.0,94000.0,5.25187229]
[1746460087552,0.91398102,94001.0,94000.0,5.25187229]
[1746460087802,1.25610155,94001.0,94000.0,5.22087229]
[1746460087974,0.9460386,94001.0,94000.0,5.22087229]
[1746460088714,1.2860386,94001.0,94000.0,5.22087229]
[1746460089694,1.2539822,94001.0,94000.0,5.22087229]
[1746460089900,1.35950249,94001.0,94000.0,5.22087229]
[1746460090117,1.37619463,94001.0,94000.0,5.22087229]
[1746460091121,1.37619463,94001.0,94000.0,5.23707229]
[1746460091502,1.37619463,94001.0,94000.0,5.22087229]
[1746460091698,1.40825103,94001.0,94000.0,5.22087229]
[1746460092221,2.10405103,94001.0,94000.0,5.17271247]
[1746460093555,2.09505103,94001.0,94000.0,5.17271247]
[1746460093788,2.10605103,94001.0,94000.0,5.16571247]
[1746460094177,2.09605103,94001.0,94000.0,5.16571247]
[1746460094449,2.10805103,94001.0,94000.0,5.16571247]
[1746460096776,2.09135889,94001.0,94000.0,5.14901994]
[1746460097241,2.05930249,94001.0,94000.0,5.14901994]
[1746460098095,2.04730249,94001.0,94000.0,5.14901994]
[1746460098297,2.07935889,94001.0,94000.0,5.14901994]
[1746460098495,2.04630249,94001.0,94000.0,5.14901994]
[1746460098876,2.05830249,94001.0,94000.0,5.14901994]
[1746460099558,2.09076539,94001.0,94000.0,5.14901994]
[1746460099891,2.07976539,94001.0,94000.0,5.14901994]
[1746460100243,2.09176539,94001.0,94000.0,5.14901994]
[1746460100967,2.09176539,94001.0,94000.0,5.14201994]
[1746460102359,2.09181395,94001.0,94000.0,5.14201994]
[1746460103328,2.14181395,94001.0,94000.0,4.22701126]
[1746460104872,2.12981395,94001.0,94000.0,4.22701126]
[1746460105066,2.14281395,94001.0,94000.0,4.22701126]
[1746460105696,2.11781395,94001.0,94000.0,4.22701126]
[1746460105892,2.13281395,94001.0,94000.0,4.22701126]
[1746460106281,2.14581395,94001.0,94000.0,4.22701126]
[1746460106434,2.14581395,94001.0,94000.0,4.21031779]
[1746460106638,2.13281395,94001.0,94000.0,4.21031779]
[1746460107572,2.13281395,94001.0,94000.0,2.10844646]
[1746460107573,1.36354366,94001.0,94000.0,2.10844646]
[1746460107764,2.05934366,94001.0,94000.0,2.08444646]
[1746460108008,2.05934366,94001.0,94000.0,2.0697174]
[1746460108416,2.05834366,94001.0,94000.0,2.0697174]
[1746460108764,2.07434366,94001.0,94000.0,2.0697174]
[1746460109397,2.04188076,94001.0,94000.0,2.0697174]
[1746460109626,2.02788076,94001.0,94000.0,2.0697174]
[1746460109998,2.07688464,94001.0,94000.0,2.0697174]
[1746460110578,2.04694759,94001.0,94000.0,1.0697174]
[1746460111442,2.01294371,94001.0,94000.0,1.0697174]
[1746460112423,1.84711583,94001.0,94000.0,1.0697174]
[1746460112630,2.01294371,94001.0,94000.0,1.05307989]
[1746460114584,2.04898308,94001.0,94000.0,1.05307989]
[1746460115016,2.04898308,94001.0,94000.0,1.04607989]
[1746460115677,2.01294371,94001.0,94000.0,1.04607989]
[1746460117798,2.04283677,94001.0,94000.0,1.04607989]
[1746460118571,2.01294371,94001.0,94000.0,0.04607989]
[1746460118767,2.01294371,94001.0,94000.0,0.04120466]
[1746460119159,2.04283896,94001.0,94000.0,0.04120466]
[1746460119381,2.01294371,94001.0,94000.0,0.04120466]
[1746460120591,2.04284082,94001.0,94000.0,0.04120466]
[1746460121785,2.04284082,94001.0,94000.0,0.07150466]
[1746460122107,2.04284082,94001.0,94000.0,0.06450466]
[1746460123039,1.87601294,94001.0,94000.0,0.06450466]
[1746460123218,1.97829997,94001.0,94000.0,0.06450466]
[1746460123422,1.94840286,94001.0,94000.0,0.06450466]
[1746460123624,1.49257498,94001.0,94000.0,0.06450466]
[1746460124023,1.60840286,94001.0,94000.0,0.06450466]
[1746460124231,1.81657498,94001.0,94000.0,0.06450466]
[1746460124432,1.91740286,94001.0,94000.0,0.06450466]
[1746460124838,1.60340286,94001.0,94000.0,0.06450466]
[1746460125474,1.94340286,94001.0,94000.0,0.06450466]
[1746460125674,1.93040286,94001.0,94000.0,0.06450466]
[1746460125882,1.94140286,94001.0,94000.0,0.06450466]
[1746460127337,1.92840286,94001.0,94000.0,0.06450466]
[1746460127696,1.94040286,94001.0,94000.0,0.06450466]
[1746460128078,1.12877498,94001.0,94000.0,0.06450466]
[1746460128251,1.21255286,94001.0,94000.0,0.06450466]
[1746460128623,1.09672498,94001.0,94000.0,0.06450466]
[1746460128824,1.21255286,94001.0,94000.0,0.06450466]
[1746460129030,1.21255286,94001.0,94000.0,0.05750466]
[1746460129233,1.22709371,94001.0,94000.0,0.05750466]
[1746460133981,1.26353855,94001.0,94000.0,0.05750466]
[1746460134180,1.25696528,94001.0,94000.0,0.05750466]
[1746460134499,1.25696608,94001.0,94000.0,0.05750466]
[1746460136137,1.22709371,94001.0,94000.0,0.05750466]
[1746460136344,1.22709371,94001.0,94000.0,0.05050466]
[1746460141251,1.22709371,94001.0,94000.0,0.02020466]
[1746460141252,1.2569472,94001.0,94000.0,0.02020466]
[1746460141849,1.2569472,94001.0,93999.0,0.010567]
[1746460141850,0.68413468,94000.0,93999.0,0.010567]
[1746460142125,0.77056725,94000.0,93999.0,0.010567]
[1746460142913,0.82056725,94000.0,93999.0,0.010567]
[1746460143297,1.32056725,94000.0,93999.0,0.003567]
[1746460143507,0.68315958,93989.0,93988.0,24.999]
[1746460143706,0.74963086,93989.0,93988.0,24.999]
[1746460143903,0.76959215,93989.0,93988.0,24.999]
[1746460144612,0.76953035,93989.0,93988.0,24.999]
[1746460144812,0.78253035,93989.0,93988.0,24.999]
[1746460145208,1.28253035,93989.0,93988.0,24.999]
[1746460145441,1.97833035,93989.0,93988.0,24.999]
[1746460145926,1.97833035,93989.0,93988.0,24.9582781]
[1746460145927,1.95471256,93989.0,93988.0,24.9582781]
[1746460146124,1.98793686,93989.0,93988.0,24.9582781]
[1746460146658,1.95471256,93989.0,93988.0,24.9582781]
[1746460147191,1.95471256,93989.0,93988.0,24.9741781]
[1746460147446,1.98822065,93989.0,93988.0,24.9582781]
[1746460147696,2.03822065,93989.0,93988.0,24.9582781]
[1746460149173,2.03822065,93989.0,93988.0,24.94834074]
[1746460149889,2.00471256,93989.0,93988.0,24.94834074]
[1746460150111,2.03832844,93989.0,93988.0,24.94834074]
[1746460150590,2.00471256,93989.0,93988.0,24.94134074]
[1746460150903,2.03832844,93989.0,93988.0,24.94134074]
[1746460152185,2.07038444,93989.0,93988.0,24.94134074]
[1746460153785,2.03676856,93989.0,93988.0,24.94134074]
[1746460154101,2.07038444,93989.0,93988.0,24.94134074]
[1746460157526,2.07038444,93989.0,93988.0,24.93434074]
[1746460159963,2.03676856,93989.0,93988.0,24.93434074]
[1746460160343,2.07077621,93989.0,93988.0,24.93434074]
[1746460162554,2.07077621,93989.0,93988.0,24.95074074]
[1746460162780,1.87094068,93989.0,93988.0,24.96734074]
[1746460162983,1.85639983,93989.0,93988.0,24.96734074]
[1746460163186,1.97222771,93989.0,93988.0,24.96734074]
[1746460163419,1.98676856,93989.0,93988.0,24.96734074]
[1746460164655,1.98676856,93989.0,93988.0,24.96034074]
[1746460164846,1.96686907,93989.0,93988.0,24.96034074]
[1746460165047,1.29096863,93989.0,93988.0,24.96034074]
[1746460165879,1.32497628,93989.0,93988.0,24.96034074]
[1746460166301,1.29096863,93989.0,93988.0,24.96034074]
[1746460168904,1.29096863,93989.0,93988.0,24.9475263]
[1746460169922,1.32497628,93989.0,93988.0,24.9475263]
[1746460170099,1.32497628,93989.0,93988.0,24.9145263]
[1746460170704,1.32497628,93989.0,93988.0,24.9448263]
[1746460172508,1.32497628,93989.0,93988.0,24.9378263]
[1746460173338,1.32497628,93989.0,93988.0,24.9075263]
[1746460173537,1.37497628,93989.0,93988.0,24.9075263]
[1746460173920,1.37497628,93989.0,93988.0,24.9231263]
[1746460174764,1.37497628,93989.0,93988.0,24.9394263]
[1746460176161,1.37497628,93989.0,93988.0,24.9075263]
[1746460177312,1.37503671,93989.0,93988.0,24.9075263]
[1746460178580,1.37503671,93989.0,93988.0,24.9403263]
[1746460179204,1.34102906,93989.0,93988.0,24.9275109]
[1746460179634,1.34102906,93989.0,93988.0,24.9205109]
[1746460179946,1.37503671,93989.0,93988.0,24.9205109]
[1746460181497,1.37503671,93989.0,93988.0,24.8877109]
[1746460182447,1.37503671,93989.0,93988.0,24.9030109]
[1746460182765,1.37503671,93989.0,93988.0,24.9191109]
[1746460183302,2.07083671,93989.0,93988.0,24.9191109]
[1746460183935,2.07083671,93989.0,93988.0,24.90246914]
[1746460185053,2.07083671,93989.0,93988.0,24.88636914]
[1746460185818,2.07083671,93989.0,93988.0,24.87106914]
[1746460186755,2.07083671,93989.0,93988.0,24.86406914]
[1746460189335,2.07083671,93989.0,93988.0,24.8512529]
[1746460192000,2.07083671,93989.0,93988.0,23.93624422]
[1746460193330,2.05783671,93989.0,93988.0,23.93624422]
[1746460193557,2.07183671,93989.0,93988.0,23.93624422]
[1746460193775,2.07183671,93989.0,93988.0,23.62552709]
[1746460193964,2.05883671,93989.0,93988.0,23.61852709]
[1746460194125,2.07383671,93989.0,93988.0,23.61852709]
[1746460194712,2.05883671,93989.0,93988.0,23.61852709]
[1746460195316,2.04483671,93989.0,93988.0,23.61852709]
[1746460195512,2.06583671,93989.0,93988.0,23.61852709]
[1746460195785,2.08183671,93989.0,93988.0,23.61852709]
[1746460195979,2.06583671,93989.0,93988.0,23.61852709]
[1746460196184,2.08483671,93989.0,93988.0,23.61852709]
[1746460196394,2.19161671,93989.0,93988.0,23.61852709]
[1746460198964,2.17061671,93989.0,93988.0,23.61852709]
[1746460199956,2.19061671,93989.0,93988.0,23.6018854]
[1746460200949,2.19061671,93989.0,93988.0,23.5948854]
[1746460201604,1.99078118,93989.0,93988.0,23.5948854]
[1746460201772,2.15660906,93989.0,93988.0,23.6272854]
[1746460201995,2.19061671,93989.0,93988.0,23.63336626]
[1746460202907,2.02478883,93989.0,93988.0,23.63336626]
[1746460203166,2.19061671,93989.0,93988.0,23.63336626]
[1746460203375,1.99078118,93989.0,93988.0,23.63336626]
[1746460203508,1.97624033,93989.0,93988.0,23.63336626]
[1746460203752,1.75206821,93989.0,93988.0,23.63336626]
[1746460204076,2.09206821,93989.0,93988.0,23.63336626]
[1746460204310,1.75206821,93989.0,93988.0,23.62055058]
[1746460204520,0.88584033,93989.0,93988.0,23.62055058]
[1746460204729,0.98506821,93989.0,93988.0,23.62055058]
[1746460204936,1.36306821,93989.0,93988.0,23.62055058]
[1746460205261,0.91628821,93989.0,93988.0,23.62055058]
[1746460205896,1.14046033,93989.0,93988.0,23.62055058]
[1746460206093,1.12146033,93989.0,93988.0,23.62055058]
[1746460206267,0.68260433,93989.0,93988.0,23.62055058]
[1746460206471,0.81543221,93989.0,93988.0,23.62055058]
[1746460206669,0.74723221,93989.0,93988.0,23.62055058]
[1746460206894,0.71737872,93989.0,93988.0,23.62055058]
[1746460207098,1.05737872,93989.0,93988.0,23.62055058]
[1746460207254,0.71737872,93989.0,93988.0,23.62055058]
[1746460207455,1.02637872,93989.0,93988.0,23.62055058]
[1746460207656,1.04037872,93989.0,93988.0,23.62055058]
[1746460207860,1.05137872,93989.0,93988.0,23.62055058]
[1746460208066,1.16581912,93989.0,93988.0,23.61355058]
[1746460208279,1.13592722,93989.0,93988.0,23.61355058]
[1746460208480,1.16580945,93989.0,93988.0,23.61355058]
[1746460208688,1.1318018,93989.0,93988.0,23.61355058]
[1746460210237,1.1428018,93989.0,93988.0,23.61355058]
[1746460211475,1.01243307,93989.0,93988.0,23.61355058]
[1746460211831,1.12826095,93989.0,93988.0,23.61355058]
[1746460212891,1.07826095,93989.0,93988.0,23.61355058]
[1746460213099,0.99247308,93989.0,93988.0,23.61355058]
[1746460213518,1.02841873,93989.0,93988.0,23.61355058]
[1746460213879,1.07841873,93989.0,93988.0,23.61355058]
[1746460214087,1.10829206,93989.0,93988.0,23.61355058]
[1746460214308,1.07841873,93989.0,93988.0,23.61355058]
[1746460214732,1.10828826,93989.0,93988.0,23.61355058]
[1746460214944,0.99246038,93989.0,93988.0,23.61167811]
[1746460215163,0.96259085,93989.0,93988.0,23.60046972]
[1746460215379,0.98250739,93989.0,93988.0,23.60046972]
[1746460215591,1.09833527,93989.0,93988.0,23.60046972]
[1746460216015,0.70833527,93989.0,93988.0,23.60046972]
[1746460216273,0.98250739,93989.0,93988.0,23.60046972]
[1746460216737,1.04833527,93989.0,93988.0,23.60046972]
[1746460216932,0.98250739,93989.0,93988.0,23.60046972]
[1746460217139,0.75833527,93989.0,93988.0,23.60046972]
[1746460217329,1.13234292,93989.0,93988.0,23.60046972]
[1746460217746,1.16439092,93989.0,93988.0,23.60046972]
[1746460217949,1.16022196,93989.0,93988.0,23.60046972]
[1746460218159,1.13038327,93989.0,93988.0,23.60046972]
[1746460218365,1.16021756,93989.0,93988.0,23.60046972]
[1746460219371,1.12816956,93989.0,93988.0,23.60046972]
[1746460222013,1.12816956,93989.0,93988.0,23.59346972]
[1746460224183,1.07816956,93989.0,93988.0,23.59346972]
[1746460224443,1.12816956,93989.0,93988.0,23.59346972]
[1746460224776,1.1281431,93989.0,93988.0,23.59346972]
[1746460225776,1.0781431,93989.0,93988.0,23.59346972]
[1746460225985,1.1281431,93989.0,93988.0,23.59346972]
[1746460227871,1.0781431,93989.0,93988.0,23.59346972]
[1746460228445,1.01231522,93989.0,93988.0,23.59346972]
[1746460228644,1.04830881,93989.0,93988.0,23.59346972]
[1746460229329,1.04830881,93989.0,93988.0,23.58646972]
[1746460231659,1.03730881,93989.0,93988.0,23.59708077]
[1746460231809,1.04630881,93989.0,93988.0,23.59708077]
[1746460233567,1.01541873,93989.0,93988.0,23.59708077]
[1746460233940,1.02641873,93989.0,93988.0,23.59708077]
[1746460234142,1.04636952,93989.0,93988.0,23.59708077]
[1746460236467,0.98054164,93989.0,93988.0,23.59708077]
[1746460236656,1.04636952,93989.0,93988.0,23.59708077]
[1746460236859,0.98054164,93989.0,93988.0,23.59708077]
[1746460237094,1.04636952,93989.0,93988.0,23.59008077]
[1746460238493,0.98054164,93989.0,93988.0,23.59008077]
[1746460238711,1.04636952,93989.0,93988.0,23.59008077]
[1746460239134,1.03736952,93989.0,93988.0,23.59008077]
[1746460239343,1.04636952,93989.0,93988.0,23.59008077]
[1746460239720,1.03536952,93989.0,93988.0,23.59008077]
[1746460239923,1.02636952,93989.0,93988.0,23.59008077]
[1746460240131,1.04236952,93989.0,93988.0,23.59008077]
[1746460240556,1.03236952,93989.0,93988.0,23.59008077]
[1746460240900,1.03936952,93989.0,93988.0,23.59008077]
[1746460244101,1.03936952,93989.0,93988.0,23.58308077]
[1746460251138,1.03936952,93989.0,93988.0,23.57608077]
[1746460253686,0.97354164,93989.0,93988.0,23.57608077]
[1746460254096,1.03936952,93989.0,93988.0,23.57608077]
[1746460255718,0.69936952,93989.0,93988.0,23.57608077]
[1746460256162,0.69936952,93989.0,93988.0,23.57708077]
[1746460256360,0.19936952,93989.0,93988.0,23.57708077]
[1746460256721,0.19936952,93989.0,93988.0,23.99188077]
[1746460256937,0.16716952,93989.0,93988.0,23.99188077]
[1746460257766,0.16016952,93989.0,93988.0,23.99188077]
[1746460257962,0.15416952,93989.0,93988.0,23.99188077]
[1746460258168,0.15416952,93989.0,93988.0,23.98488077]
[1746460258785,0.15916952,93989.0,93988.0,23.98488077]
[1746460259005,0.15416952,93989.0,93988.0,23.98488077]
[1746460259237,0.15716952,93989.0,93988.0,23.98488077]
[1746460259817,0.16016952,93989.0,93988.0,24.09140106]
[1746460260187,0.16016952,93989.0,93988.0,24.00042162]
[1746460260593,0.15716952,93989.0,93988.0,23.99942162]
[1746460260745,0.16016952,93989.0,93988.0,24.00042162]
[1746460265345,0.16016952,93989.0,93988.0,23.99342162]
[1746460265535,0.16016952,93989.0,93988.0,23.97888077]
[1746460266300,0.50016952,93989.0,93988.0,23.56308077]
[1746460266501,0.50016952,93989.0,93988.0,23.53068077]
[1746460266618,0.51546952,93989.0,93988.0,23.53068077]
[1746460267453,0.51246952,93989.0,93988.0,23.52968077]
[1746460267656,0.51746952,93989.0,93988.0,23.52968077]
[1746460267859,0.51446952,93989.0,93988.0,23.52968077]
[1746460268103,0.56627872,93989.0,93988.0,23.52968077]
[1746460270120,0.56127872,93989.0,93988.0,23.52968077]
[1746460270320,0.53007872,93989.0,93988.0,23.52968077]
[1746460270537,0.53607872,93989.0,93988.0,23.52968077]
[1746460270942,0.50616952,93989.0,93988.0,23.52968077]
[1746460271143,0.50016952,93989.0,93988.0,23.52968077]
[1746460271713,0.50716952,93989.0,93988.0,23.52968077]
[1746460272384,0.53708124,93989.0,93988.0,23.52268077]
[1746460273950,0.50716952,93989.0,93988.0,23.52268077]
[1746460274932,0.53708033,93989.0,93988.0,23.52268077]
[1746460275406,0.53707961,93989.0,93988.0,23.52268077]
[1746460278111,0.55267961,93989.0,93988.0,23.52268077]
[1746460278643,0.56787961,93989.0,93988.0,23.52268077]
[1746460279483,0.56787961,93989.0,93988.0,23.51568077]
[1746460279687,0.55267961,93989.0,93988.0,23.51568077]
[1746460280478,0.53707961,93989.0,93988.0,23.51568077]
[1746460280932,0.44134164,93989.0,93988.0,23.51568077]
[1746460281297,0.44134164,93989.0,93988.0,23.53108077]
[1746460281492,0.44134164,93989.0,93988.0,23.54648077]
[1746460282098,0.50716952,93989.0,93988.0,23.54648077]
[1746460282578,0.49416952,93989.0,93988.0,23.54648077]
[1746460282784,0.50216952,93989.0,93988.0,23.54648077]
[1746460282994,0.50216952,93989.0,93988.0,23.53108077]
[1746460283407,0.43134164,93989.0,93988.0,23.53108077]
[1746460283609,0.43134164,93989.0,93988.0,23.54728077]
[1746460283814,0.43334164,93989.0,93988.0,23.54728077]
[1746460284687,0.15916952,93989.0,93988.0,23.54728077]
[1746460284868,0.49916952,93989.0,93988.0,23.54728077]
[1746460286699,0.49916952,93989.0,93988.0,23.54028077]
[1746460287755,0.49916952,93989.0,93988.0,23.52408077]
[1746460288585,0.49916952,93989.0,93988.0,23.54058077]
[1746460290408,0.49916952,93989.0,93988.0,23.54158077]
[1746460292824,0.49916952,93989.0,93988.0,23.52508077]
[1746460293437,0.49916952,93989.0,93988.0,23.52408077]
[1746460293603,0.49916952,93989.0,93988.0,23.51808077]
[1746460299583,0.49916952,93989.0,93988.0,23.53388077]
[1746460300208,0.49916952,93989.0,93988.0,23.51808077]
[1746460300709,0.49916952,93989.0,93988.0,23.51108077]
[1746460302422,0.49916952,93989.0,93988.0,23.49568077]
[1746460304718,0.56507347,93989.0,93988.0,23.49468077]
[1746460304916,0.53066952,93989.0,93988.0,23.49468077]
[1746460305637,0.52766952,93989.0,93988.0,23.49468077]
[1746460305828,0.52566952,93989.0,93988.0,23.49468077]
[1746460306026,0.53166952,93989.0,93988.0,23.49468077]
[1746460306933,0.52566952,93989.0,93988.0,23.49468077]
[1746460307133,0.53066952,93989.0,93988.0,23.49468077]
[1746460307540,0.56560882,93989.0,93988.0,23.49468077]
[1746460308036,0.56060882,93989.0,93988.0,23.48768077]
[1746460308630,0.56460882,93989.0,93988.0,23.48768077]
[1746460311238,0.54930882,93989.0,93988.0,23.48768077]
[1746460312182,0.56430882,93989.0,93988.0,23.48768077]
[1746460313765,0.54930882,93989.0,93988.0,23.48768077]
[1746460315045,0.54930882,93989.0,93988.0,23.48068077]
[1746460316286,0.51936952,93989.0,93988.0,23.48068077]
[1746460316418,0.50316952,93989.0,93988.0,23.48068077]
[1746460317417,0.51896952,93989.0,93988.0,23.48068077]
[1746460318050,0.54892458,93989.0,93988.0,23.48068077]
[1746460318708,0.53312458,93989.0,93988.0,23.48068077]
[1746460320686,0.50316952,93989.0,93988.0,23.48068077]
[1746460322051,0.50316952,93989.0,93988.0,23.47368077]
[1746460323085,0.51856952,93989.0,93988.0,23.47368077]
[1746460323287,0.56443264,93989.0,93988.0,23.47368077]
[1746460327036,0.59858659,93989.0,93988.0,23.47368077]
[1746460328029,0.56443264,93989.0,93988.0,23.47368077]
[1746460329258,0.56443264,93989.0,93988.0,23.46668077]
[1746460331584,0.54853264,93989.0,93988.0,23.46668077]
[1746460331973,0.46730476,93989.0,93988.0,23.46668077]
[1746460332382,0.53313264,93989.0,93988.0,23.46668077]
[1746460332684,0.43734164,93989.0,93988.0,23.46668077]
[1746460332914,0.16316952,93989.0,93988.0,23.46668077]
[1746460333064,0.16316952,93989.0,93988.0,23.48288077]